[Event "Titled Tuesday Blitz July 25 Early 2023"]
[White "Cherniaiev, Tykhon"]
[Black "dodoucb"]
[WhiteFideId "14182360"]
[WhiteElo "2698"]
[BlackElo "2397"]
[Result "1-0"]
[Round "2"]
[TimeControl "180+2"]
[Date "2023.07.25"]
[WhiteClock "0:00:53"]
[BlackClock "0:00:15"]
[Board "152"]

1. Nf3 {[%clk 0:03:00]}  Nf6 {[%clk 0:02:59]} 2. d4 {[%clk 0:03:00]}  e6 {[%clk 0:02:59]} 3. c4 {[%clk 0:03:01]}  Bb4+ {[%clk 0:02:59]} 4. Bd2 {[%clk 0:03:01]}  Qe7 {[%clk 0:02:59]} 5. g3 {[%clk 0:03:02]}  b6 {[%clk 0:02:59]} 6. Bg2 {[%clk 0:03:03]}  Bb7 {[%clk 0:02:59]} 7. O-O {[%clk 0:03:03]}  O-O {[%clk 0:03:00]} 8. a3 {[%clk 0:03:04]}  Bxd2 {[%clk 0:02:59]} 9. Nbxd2 {[%clk 0:03:05]}  d5 {[%clk 0:02:59]} 10. Qc2 {[%clk 0:03:04]}  c5 {[%clk 0:02:58]} 11. cxd5 {[%clk 0:03:02]}  exd5 {[%clk 0:02:58]} 12. e3 {[%clk 0:03:01]}  Nbd7 {[%clk 0:02:56]} 13. Nh4 {[%clk 0:02:45]}  g6 {[%clk 0:02:43]} 14. Rad1 {[%clk 0:02:44]}  Rad8 {[%clk 0:02:39]} 15. Qa4 {[%clk 0:02:43]}  a6 {[%clk 0:02:33]} 16. dxc5 {[%clk 0:02:42]}  bxc5 {[%clk 0:02:33]} 17. Nb3 {[%clk 0:02:39]}  Ne5 {[%clk 0:02:19]} 18. Qf4 {[%clk 0:02:29]}  Ne4 {[%clk 0:02:08]} 19. Nf3 {[%clk 0:01:55]}  Nxf3+ {[%clk 0:01:23]} 20. Bxf3 {[%clk 0:01:56]}  g5 {[%clk 0:01:24]} 21. Qg4 {[%clk 0:01:48]}  f5 {[%clk 0:01:23]} 22. Qh5 {[%clk 0:01:47]}  Kh8 {[%clk 0:00:49]} 23. Bxe4 {[%clk 0:01:32]}  fxe4 {[%clk 0:00:47]} 24. Rc1 {[%clk 0:01:24]}  Rc8 {[%clk 0:00:47]} 25. Qe2 {[%clk 0:01:20]}  Rc6 {[%clk 0:00:39]} 26. Na5 {[%clk 0:01:15]}  Rc7 {[%clk 0:00:31]} 27. Qd2 {[%clk 0:01:10]}  Ba8 {[%clk 0:00:29]} 28. b4 {[%clk 0:01:08]}  Rf6 {[%clk 0:00:14]} 29. bxc5 {[%clk 0:00:57]}  Rxc5 {[%clk 0:00:15]} 30. Qb4 {[%clk 0:00:53]} 1-0


[Site "https://www.chess.com"]

[Event "Titled Tuesday Blitz July 25 Early 2023"]
[White "Grekh, Andrey"]
[Black "Vaishali, Rameshbabu"]
[WhiteFideId "14112418"]
[BlackFideId "5091756"]
[WhiteElo "2391"]
[BlackElo "2695"]
[Result "0-1"]
[Round "2"]
[TimeControl "180+2"]
[Date "2023.07.25"]
[WhiteClock "0:00:06"]
[BlackClock "0:00:07"]
[Board "153"]

1. e4 {[%clk 0:03:00]}  e5 {[%clk 0:02:59]} 2. Nf3 {[%clk 0:03:00]}  Nc6 {[%clk 0:02:59]} 3. Nc3 {[%clk 0:03:01]}  Nf6 {[%clk 0:02:59]} 4. d4 {[%clk 0:03:00]}  exd4 {[%clk 0:02:59]} 5. Nxd4 {[%clk 0:03:00]}  Nxe4 {[%clk 0:02:51]} 6. Nxe4 {[%clk 0:02:58]}  Qe7 {[%clk 0:02:51]} 7. f3 {[%clk 0:02:57]}  d5 {[%clk 0:02:50]} 8. Bb5 {[%clk 0:02:51]}  Bd7 {[%clk 0:02:45]} 9. O-O {[%clk 0:02:51]}  dxe4 {[%clk 0:02:44]} 10. Bxc6 {[%clk 0:02:48]}  bxc6 {[%clk 0:02:45]} 11. Re1 {[%clk 0:02:43]}  O-O-O {[%clk 0:02:44]} 12. Rxe4 {[%clk 0:02:43]}  Qb4 {[%clk 0:02:41]} 13. Bd2 {[%clk 0:02:31]}  Qb6 {[%clk 0:02:34]} 14. Be3 {[%clk 0:02:25]}  c5 {[%clk 0:02:12]} 15. Nb3 {[%clk 0:02:04]}  Bc6 {[%clk 0:02:07]} 16. Qe2 {[%clk 0:01:54]}  Bxe4 {[%clk 0:02:06]} 17. fxe4 {[%clk 0:01:55]}  Bd6 {[%clk 0:01:34]} 18. Qc4 {[%clk 0:01:55]}  Qb4 {[%clk 0:01:28]} 19. Qa6+ {[%clk 0:01:54]}  Qb7 {[%clk 0:01:18]} 20. Qc4 {[%clk 0:01:50]}  Rhe8 {[%clk 0:01:18]} 21. Bxc5 {[%clk 0:01:39]}  Rxe4 {[%clk 0:01:00]} 22. Qxf7 {[%clk 0:01:39]}  Re2 {[%clk 0:00:59]} 23. Qf5+ {[%clk 0:01:23]}  Kb8 {[%clk 0:00:58]} 24. Qg5 {[%clk 0:01:24]}  Rde8 {[%clk 0:00:38]} 25. Bd4 {[%clk 0:00:49]}  h6 {[%clk 0:00:25]} 26. Qxg7 {[%clk 0:00:44]}  Qd5 {[%clk 0:00:18]} 27. c4 {[%clk 0:00:32]}  Qf5 {[%clk 0:00:10]} 28. Rf1 {[%clk 0:00:30]}  Re1 {[%clk 0:00:09]} 29. Nd2 {[%clk 0:00:27]}  Rxf1+ {[%clk 0:00:09]} 30. Nxf1 {[%clk 0:00:27]}  Re1 {[%clk 0:00:08]} 31. Qg8+ {[%clk 0:00:24]}  Kb7 {[%clk 0:00:04]} 32. Qd5+ {[%clk 0:00:24]}  Qxd5 {[%clk 0:00:04]} 33. cxd5 {[%clk 0:00:25]}  Ra1 {[%clk 0:00:03]} 34. a3 {[%clk 0:00:25]}  Rd1 {[%clk 0:00:03]} 35. Bg7 {[%clk 0:00:20]}  h5 {[%clk 0:00:04]} 36. g3 {[%clk 0:00:19]}  Bc5+ {[%clk 0:00:04]} 37. Kg2 {[%clk 0:00:19]}  Rxd5 {[%clk 0:00:04]} 38. Bc3 {[%clk 0:00:19]}  Rd3 {[%clk 0:00:05]} 39. Nd2 {[%clk 0:00:19]}  Kc6 {[%clk 0:00:04]} 40. Ne4 {[%clk 0:00:18]}  Bd4 {[%clk 0:00:05]} 41. Bxd4 {[%clk 0:00:08]}  Rxd4 {[%clk 0:00:06]} 42. Kf3 {[%clk 0:00:09]}  Rd3+ {[%clk 0:00:06]} 43. Ke2 {[%clk 0:00:08]}  Rb3 {[%clk 0:00:06]} 44. Nf6 {[%clk 0:00:06]}  Rxb2+ {[%clk 0:00:06]} 45. Kf3 {[%clk 0:00:06]}  Rxh2 {[%clk 0:00:07]} 0-1


[Site "https://www.chess.com"]

[Event "Titled Tuesday Blitz July 25 Early 2023"]
[White "Li, Hui"]
[Black "Skliarov, Viktor"]
[WhiteFideId "15400310"]
[BlackFideId "14106736"]
[WhiteElo "2389"]
[BlackElo "2675"]
[Result "0-1"]
[Round "2"]
[TimeControl "180+2"]
[Date "2023.07.25"]
[WhiteClock "0:00:04"]
[BlackClock "0:00:16"]
[Board "156"]

1. e4 {[%clk 0:03:00]}  c5 {[%clk 0:02:57]} 2. Nf3 {[%clk 0:03:00]}  Nc6 {[%clk 0:02:57]} 3. d4 {[%clk 0:03:01]}  cxd4 {[%clk 0:02:57]} 4. Nxd4 {[%clk 0:03:02]}  Nf6 {[%clk 0:02:58]} 5. Nc3 {[%clk 0:03:02]}  e5 {[%clk 0:02:58]} 6. Ndb5 {[%clk 0:03:03]}  d6 {[%clk 0:02:58]} 7. Bg5 {[%clk 0:03:03]}  a6 {[%clk 0:02:58]} 8. Na3 {[%clk 0:03:04]}  b5 {[%clk 0:02:59]} 9. Nd5 {[%clk 0:03:04]}  Be7 {[%clk 0:02:59]} 10. Bxf6 {[%clk 0:03:05]}  Bxf6 {[%clk 0:03:00]} 11. c3 {[%clk 0:03:06]}  O-O {[%clk 0:03:00]} 12. Nc2 {[%clk 0:03:06]}  Rb8 {[%clk 0:03:00]} 13. h4 {[%clk 0:03:04]}  g6 {[%clk 0:02:57]} 14. g3 {[%clk 0:03:04]}  h5 {[%clk 0:02:55]} 15. Bh3 {[%clk 0:02:59]}  Bg7 {[%clk 0:02:45]} 16. Bxc8 {[%clk 0:02:53]}  Qxc8 {[%clk 0:02:38]} 17. O-O {[%clk 0:02:47]}  Kh7 {[%clk 0:02:33]} 18. Kg2 {[%clk 0:02:43]}  f5 {[%clk 0:02:25]} 19. exf5 {[%clk 0:02:42]}  Qxf5 {[%clk 0:02:23]} 20. Nce3 {[%clk 0:02:35]}  Qe6 {[%clk 0:02:21]} 21. Nc7 {[%clk 0:02:31]}  Qd7 {[%clk 0:02:12]} 22. Nxa6 {[%clk 0:02:17]}  Rbd8 {[%clk 0:01:25]} 23. Nd5 {[%clk 0:02:11]}  Qb7 {[%clk 0:01:18]} 24. Nab4 {[%clk 0:02:01]}  Nxb4 {[%clk 0:01:18]} 25. cxb4 {[%clk 0:02:01]}  e4 {[%clk 0:01:18]} 26. Rc1 {[%clk 0:01:52]}  Rf5 {[%clk 0:01:01]} 27. Ne3 {[%clk 0:01:50]}  Re5 {[%clk 0:00:55]} 28. Qc2 {[%clk 0:01:39]}  d5 {[%clk 0:00:54]} 29. Qc7 {[%clk 0:01:37]}  Qxc7 {[%clk 0:00:54]} 30. Rxc7 {[%clk 0:01:37]}  d4 {[%clk 0:00:55]} 31. Nc2 {[%clk 0:01:28]}  Red5 {[%clk 0:00:39]} 32. Rd1 {[%clk 0:01:26]}  R8d7 {[%clk 0:00:34]} 33. Rxd7 {[%clk 0:01:22]}  Rxd7 {[%clk 0:00:35]} 34. f3 {[%clk 0:01:17]}  d3 {[%clk 0:00:32]} 35. Ne1 {[%clk 0:01:00]}  d2 {[%clk 0:00:21]} 36. Nc2 {[%clk 0:00:58]}  exf3+ {[%clk 0:00:22]} 37. Kxf3 {[%clk 0:00:58]}  Bxb2 {[%clk 0:00:23]} 38. Ne3 {[%clk 0:00:49]}  Bc3 {[%clk 0:00:22]} 39. a3 {[%clk 0:00:39]}  Ra7 {[%clk 0:00:22]} 40. Nd5 {[%clk 0:00:35]}  Rxa3 {[%clk 0:00:23]} 41. Nxc3 {[%clk 0:00:35]}  Rxc3+ {[%clk 0:00:23]} 42. Ke2 {[%clk 0:00:27]}  Rxg3 {[%clk 0:00:23]} 43. Kxd2 {[%clk 0:00:19]}  Rg4 {[%clk 0:00:20]} 44. Kc3 {[%clk 0:00:17]}  Rc4+ {[%clk 0:00:21]} 45. Kb3 {[%clk 0:00:17]}  Rxh4 {[%clk 0:00:21]} 46. Rd5 {[%clk 0:00:17]}  Rh1 {[%clk 0:00:20]} 47. Rxb5 {[%clk 0:00:17]}  h4 {[%clk 0:00:20]} 48. Rc5 {[%clk 0:00:12]}  h3 {[%clk 0:00:18]} 49. Rc3 {[%clk 0:00:10]}  g5 {[%clk 0:00:17]} 50. Rc7+ {[%clk 0:00:05]}  Kg6 {[%clk 0:00:16]} 51. Rc6+ {[%clk 0:00:05]}  Kh5 {[%clk 0:00:16]} 52. Rc8 {[%clk 0:00:05]}  Rb1+ {[%clk 0:00:15]} 53. Kc2 {[%clk 0:00:05]}  Rxb4 {[%clk 0:00:15]} 54. Rh8+ {[%clk 0:00:04]}  Kg4 {[%clk 0:00:15]} 55. Kc3 {[%clk 0:00:04]}  Rf4 {[%clk 0:00:15]} 56. Kd3 {[%clk 0:00:04]}  Kg3 {[%clk 0:00:15]} 57. Ke2 {[%clk 0:00:04]}  Kg2 {[%clk 0:00:14]} 58. Rg8 {[%clk 0:00:03]}  Rf5 {[%clk 0:00:14]} 59. Rh8 {[%clk 0:00:02]}  h2 {[%clk 0:00:15]} 60. Ke3 {[%clk 0:00:03]}  h1=Q {[%clk 0:00:14]} 61. Rxh1 {[%clk 0:00:04]}  Kxh1 {[%clk 0:00:15]} 62. Ke4 {[%clk 0:00:04]}  Rf4+ {[%clk 0:00:16]} 0-1


[Site "https://www.chess.com"]

[Event "Titled Tuesday Blitz July 25 Early 2023"]
[White "Bernat, David"]
[Black "Danielyan, Vahe"]
[WhiteFideId "2099225"]
[BlackFideId "13304828"]
[WhiteElo "2380"]
[BlackElo "2658"]
[Result "0-1"]
[Round "2"]
[TimeControl "180+2"]
[Date "2023.07.25"]
[WhiteClock "0:00:09"]
[BlackClock "0:01:58"]
[Board "157"]

1. c4 {[%clk 0:03:00]}  c6 {[%clk 0:02:52]} 2. e4 {[%clk 0:02:56]}  e5 {[%clk 0:02:49]} 3. Nc3 {[%clk 0:02:56]}  d6 {[%clk 0:02:48]} 4. g3 {[%clk 0:02:56]}  Nf6 {[%clk 0:02:48]} 5. Bg2 {[%clk 0:02:56]}  Be7 {[%clk 0:02:48]} 6. Nge2 {[%clk 0:02:56]}  O-O {[%clk 0:02:49]} 7. O-O {[%clk 0:02:57]}  Nbd7 {[%clk 0:02:49]} 8. d3 {[%clk 0:02:57]}  a6 {[%clk 0:02:47]} 9. a4 {[%clk 0:02:55]}  a5 {[%clk 0:02:47]} 10. Be3 {[%clk 0:02:55]}  Nc5 {[%clk 0:02:46]} 11. h3 {[%clk 0:02:55]}  Na6 {[%clk 0:02:45]} 12. f4 {[%clk 0:02:55]}  Nb4 {[%clk 0:02:45]} 13. f5 {[%clk 0:02:54]}  d5 {[%clk 0:02:44]} 14. cxd5 {[%clk 0:02:20]}  cxd5 {[%clk 0:02:45]} 15. Nb5 {[%clk 0:02:09]}  Bd7 {[%clk 0:02:25]} 16. g4 {[%clk 0:02:07]}  dxe4 {[%clk 0:02:25]} 17. g5 {[%clk 0:01:56]}  Nfd5 {[%clk 0:02:24]} 18. Bf2 {[%clk 0:01:28]}  Bxg5 {[%clk 0:02:19]} 19. dxe4 {[%clk 0:01:24]}  Ne3 {[%clk 0:02:19]} 20. Qb3 {[%clk 0:01:10]}  Nxg2 {[%clk 0:02:15]} 21. Kxg2 {[%clk 0:01:09]}  Bc6 {[%clk 0:02:15]} 22. Ng3 {[%clk 0:01:05]}  Qd3 {[%clk 0:02:13]} 23. Qxd3 {[%clk 0:00:53]}  Nxd3 {[%clk 0:02:14]} 24. Bb6 {[%clk 0:00:42]}  Nxb2 {[%clk 0:02:10]} 25. Nc7 {[%clk 0:00:36]}  Rac8 {[%clk 0:02:08]} 26. Bxa5 {[%clk 0:00:35]}  Nc4 {[%clk 0:02:06]} 27. Bb4 {[%clk 0:00:32]}  Rxc7 {[%clk 0:02:05]} 28. Bxf8 {[%clk 0:00:33]}  Ne3+ {[%clk 0:02:06]} 29. Kf2 {[%clk 0:00:20]}  Nxf1 {[%clk 0:02:07]} 30. Bd6 {[%clk 0:00:18]}  Rd7 {[%clk 0:02:01]} 31. Bxe5 {[%clk 0:00:18]}  Nxg3 {[%clk 0:02:00]} 32. Kxg3 {[%clk 0:00:19]}  Bf6 {[%clk 0:01:59]} 33. Bxf6 {[%clk 0:00:17]}  gxf6 {[%clk 0:02:00]} 34. Kf4 {[%clk 0:00:11]}  Rd4 {[%clk 0:01:59]} 35. Re1 {[%clk 0:00:11]}  Rxa4 {[%clk 0:01:59]} 36. Ra1 {[%clk 0:00:09]}  Rxa1 {[%clk 0:01:58]} 0-1


[Site "https://www.chess.com"]

[Event "Titled Tuesday Blitz July 25 Early 2023"]
[White "Rosenberg, Evan S"]
[Black "Agibileg, Uurtsaikh"]
[WhiteFideId "2019299"]
[BlackFideId "4901606"]
[WhiteElo "2377"]
[BlackElo "2609"]
[Result "1-0"]
[Round "2"]
[TimeControl "180+2"]
[Date "2023.07.25"]
[WhiteClock "0:00:50"]
[BlackClock "0:00:02"]
[Board "160"]

1. d4 {[%clk 0:03:00]}  Nf6 {[%clk 0:02:59]} 2. Nf3 {[%clk 0:03:00]}  g6 {[%clk 0:02:59]} 3. Nc3 {[%clk 0:03:00]}  d5 {[%clk 0:02:59]} 4. Bf4 {[%clk 0:02:59]}  Bg7 {[%clk 0:03:00]} 5. Nb5 {[%clk 0:02:59]}  Na6 {[%clk 0:02:57]} 6. e3 {[%clk 0:03:00]}  O-O {[%clk 0:02:57]} 7. h3 {[%clk 0:02:58]}  c6 {[%clk 0:02:56]} 8. Nc3 {[%clk 0:02:57]}  Nc7 {[%clk 0:02:56]} 9. Bd3 {[%clk 0:02:51]}  c5 {[%clk 0:02:52]} 10. O-O {[%clk 0:02:46]}  b6 {[%clk 0:02:50]} 11. a4 {[%clk 0:02:45]}  Ne6 {[%clk 0:02:47]} 12. Be5 {[%clk 0:02:41]}  a6 {[%clk 0:02:29]} 13. Re1 {[%clk 0:02:37]}  Bb7 {[%clk 0:02:28]} 14. Qd2 {[%clk 0:02:33]}  Rc8 {[%clk 0:02:19]} 15. Rad1 {[%clk 0:02:30]}  Qd7 {[%clk 0:02:16]} 16. Bh2 {[%clk 0:02:12]}  Rfd8 {[%clk 0:02:13]} 17. Ne5 {[%clk 0:02:12]}  Qe8 {[%clk 0:02:13]} 18. Bf1 {[%clk 0:02:12]}  Ne4 {[%clk 0:02:09]} 19. Nxe4 {[%clk 0:02:10]}  dxe4 {[%clk 0:02:10]} 20. c3 {[%clk 0:02:07]}  Qxa4 {[%clk 0:02:09]} 21. Ra1 {[%clk 0:02:06]}  Qe8 {[%clk 0:02:06]} 22. Bxa6 {[%clk 0:02:06]}  Bxa6 {[%clk 0:02:05]} 23. Rxa6 {[%clk 0:02:05]}  f6 {[%clk 0:01:58]} 24. Rxb6 {[%clk 0:01:53]}  Nc7 {[%clk 0:01:16]} 25. Nc6 {[%clk 0:01:42]}  Nd5 {[%clk 0:00:55]} 26. Nxd8 {[%clk 0:01:33]}  Nxb6 {[%clk 0:00:55]} 27. Ne6 {[%clk 0:01:34]}  Nc4 {[%clk 0:00:50]} 28. Qc2 {[%clk 0:01:29]}  cxd4 {[%clk 0:00:48]} 29. exd4 {[%clk 0:01:28]}  f5 {[%clk 0:00:48]} 30. Nxg7 {[%clk 0:01:26]}  Kxg7 {[%clk 0:00:48]} 31. Ra1 {[%clk 0:01:23]}  Qf7 {[%clk 0:00:39]} 32. Ra7 {[%clk 0:01:18]}  e3 {[%clk 0:00:29]} 33. b3 {[%clk 0:01:16]}  Qe6 {[%clk 0:00:20]} 34. Qe2 {[%clk 0:01:06]}  exf2+ {[%clk 0:00:18]} 35. Kxf2 {[%clk 0:01:07]}  Qxe2+ {[%clk 0:00:17]} 36. Kxe2 {[%clk 0:01:08]}  Nb6 {[%clk 0:00:10]} 37. c4 {[%clk 0:01:07]}  Kf6 {[%clk 0:00:09]} 38. d5 {[%clk 0:01:01]}  Na8 {[%clk 0:00:03]} 39. Kd3 {[%clk 0:01:00]}  e6 {[%clk 0:00:03]} 40. Ra6 {[%clk 0:00:59]}  Re8 {[%clk 0:00:03]} 41. Kd4 {[%clk 0:00:59]}  Kf7 {[%clk 0:00:02]} 42. d6 {[%clk 0:00:54]}  Rd8 {[%clk 0:00:02]} 43. Be5 {[%clk 0:00:50]} 1-0


[Site "https://www.chess.com"]

[Event "Titled Tuesday Blitz July 25 Early 2023"]
[White "Rodchenkov, Sergey D."]
[Black "Topalov, Aleksandar"]
[WhiteFideId "4168712"]
[BlackFideId "925659"]
[WhiteElo "2578"]
[BlackElo "2372"]
[Result "0-1"]
[Round "2"]
[TimeControl "180+2"]
[Date "2023.07.25"]
[WhiteClock "0:00:31"]
[BlackClock "0:00:12"]
[Board "162"]

1. e4 {[%clk 0:03:00]}  e6 {[%clk 0:02:59]} 2. d4 {[%clk 0:03:00]}  d5 {[%clk 0:02:59]} 3. Nc3 {[%clk 0:03:01]}  Bb4 {[%clk 0:02:58]} 4. e5 {[%clk 0:03:01]}  Qd7 {[%clk 0:02:57]} 5. h4 {[%clk 0:02:51]}  h5 {[%clk 0:02:56]} 6. Nh3 {[%clk 0:02:46]}  b6 {[%clk 0:02:55]} 7. Nf4 {[%clk 0:02:43]}  g6 {[%clk 0:02:55]} 8. Rh3 {[%clk 0:02:40]}  Ba6 {[%clk 0:02:51]} 9. a3 {[%clk 0:02:40]}  Bxf1 {[%clk 0:02:48]} 10. axb4 {[%clk 0:02:28]}  Bb5 {[%clk 0:02:43]} 11. b3 {[%clk 0:02:25]}  Nh6 {[%clk 0:02:39]} 12. Be3 {[%clk 0:02:20]}  Nf5 {[%clk 0:02:39]} 13. g4 {[%clk 0:02:11]}  hxg4 {[%clk 0:02:38]} 14. Qxg4 {[%clk 0:02:12]}  Na6 {[%clk 0:02:23]} 15. h5 {[%clk 0:02:08]}  gxh5 {[%clk 0:01:59]} 16. Nxh5 {[%clk 0:02:00]}  O-O-O {[%clk 0:01:59]} 17. Nf6 {[%clk 0:02:01]}  Qc6 {[%clk 0:01:59]} 18. Kd2 {[%clk 0:01:45]}  Nxb4 {[%clk 0:01:54]} 19. Rah1 {[%clk 0:01:33]}  Rxh3 {[%clk 0:01:48]} 20. Rxh3 {[%clk 0:01:34]}  Kb7 {[%clk 0:01:34]} 21. Rh7 {[%clk 0:01:32]}  Rf8 {[%clk 0:01:33]} 22. Bh6 {[%clk 0:01:26]}  Rd8 {[%clk 0:00:53]} 23. Be3 {[%clk 0:01:19]}  Rf8 {[%clk 0:00:49]} 24. Qh5 {[%clk 0:01:17]}  a5 {[%clk 0:00:40]} 25. Rxf7 {[%clk 0:01:02]}  Rxf7 {[%clk 0:00:40]} 26. Qxf7 {[%clk 0:01:03]}  a4 {[%clk 0:00:39]} 27. Qf8 {[%clk 0:00:58]}  Na6 {[%clk 0:00:26]} 28. bxa4 {[%clk 0:00:56]}  Bxa4 {[%clk 0:00:26]} 29. Qa3 {[%clk 0:00:42]}  Bb5 {[%clk 0:00:26]} 30. Nh5 {[%clk 0:00:39]}  Bc4 {[%clk 0:00:24]} 31. Nf4 {[%clk 0:00:39]}  b5 {[%clk 0:00:21]} 32. Qa5 {[%clk 0:00:33]}  b4 {[%clk 0:00:18]} 33. Na4 {[%clk 0:00:32]}  Bb5 {[%clk 0:00:18]} 34. Nc5+ {[%clk 0:00:29]}  Nxc5 {[%clk 0:00:18]} 35. dxc5 {[%clk 0:00:30]}  d4 {[%clk 0:00:18]} 36. Qxb4 {[%clk 0:00:31]}  dxe3+ {[%clk 0:00:17]} 37. fxe3 {[%clk 0:00:32]}  Kc8 {[%clk 0:00:17]} 38. c4 {[%clk 0:00:29]}  Ba6 {[%clk 0:00:17]} 39. Qa5 {[%clk 0:00:27]}  Kb7 {[%clk 0:00:16]} 40. Qb4+ {[%clk 0:00:22]}  Ka7 {[%clk 0:00:16]} 41. Ke2 {[%clk 0:00:20]}  Qe4 {[%clk 0:00:16]} 42. Nxe6 {[%clk 0:00:16]}  Qxc4+ {[%clk 0:00:16]} 43. Qxc4 {[%clk 0:00:15]}  Bxc4+ {[%clk 0:00:17]} 44. Kd2 {[%clk 0:00:16]}  Bxe6 {[%clk 0:00:17]} 45. e4 {[%clk 0:00:17]}  Nd4 {[%clk 0:00:15]} 46. Kc3 {[%clk 0:00:18]}  Nc6 {[%clk 0:00:15]} 47. Kd3 {[%clk 0:00:18]}  Ka6 {[%clk 0:00:16]} 48. Ke3 {[%clk 0:00:19]}  Kb5 {[%clk 0:00:15]} 49. Kf4 {[%clk 0:00:19]}  Kxc5 {[%clk 0:00:16]} 50. Kg5 {[%clk 0:00:20]}  Kd4 {[%clk 0:00:13]} 51. Kf6 {[%clk 0:00:21]}  Bc4 {[%clk 0:00:12]} 52. e6 {[%clk 0:00:22]}  Kxe4 {[%clk 0:00:11]} 53. e7 {[%clk 0:00:23]}  Nxe7 {[%clk 0:00:11]} 54. Kxe7 {[%clk 0:00:24]}  c5 {[%clk 0:00:11]} 55. Kd6 {[%clk 0:00:24]}  Kd4 {[%clk 0:00:11]} 56. Kc6 {[%clk 0:00:25]}  Bd5+ {[%clk 0:00:11]} 57. Kb6 {[%clk 0:00:26]}  c4 {[%clk 0:00:12]} 58. Kb5 {[%clk 0:00:27]}  c3 {[%clk 0:00:13]} 59. Kb4 {[%clk 0:00:28]}  c2 {[%clk 0:00:13]} 60. Ka3 {[%clk 0:00:29]}  c1=Q+ {[%clk 0:00:12]} 61. Kb4 {[%clk 0:00:30]}  Qc4+ {[%clk 0:00:13]} 62. Ka5 {[%clk 0:00:31]}  Qb3 {[%clk 0:00:12]} 63. Ka6 {[%clk 0:00:31]}  Kc5 {[%clk 0:00:12]} 64. Ka7 {[%clk 0:00:31]}  Qb7# {[%clk 0:00:12]} 0-1


[Site "https://www.chess.com"]

[Event "Titled Tuesday Blitz July 25 Early 2023"]
[White "Sriniaiyer, Sudarshan"]
[Black "Fiorito, Francisco"]
[WhiteFideId "30937213"]
[BlackFideId "180165"]
[WhiteElo "2369"]
[BlackElo "2552"]
[Result "0-1"]
[Round "2"]
[TimeControl "180+2"]
[Date "2023.07.25"]
[WhiteClock "0:01:15"]
[BlackClock "0:01:28"]
[Board "166"]

1. c4 {[%clk 0:03:00]}  Nf6 {[%clk 0:02:58]} 2. Nc3 {[%clk 0:03:00]}  g6 {[%clk 0:02:55]} 3. e4 {[%clk 0:02:59]}  d6 {[%clk 0:02:54]} 4. d4 {[%clk 0:03:00]}  Bg7 {[%clk 0:02:54]} 5. h3 {[%clk 0:02:59]}  c5 {[%clk 0:02:53]} 6. d5 {[%clk 0:02:59]}  e5 {[%clk 0:02:52]} 7. Bd3 {[%clk 0:02:58]}  a6 {[%clk 0:02:51]} 8. Nge2 {[%clk 0:02:44]}  Nbd7 {[%clk 0:02:48]} 9. O-O {[%clk 0:02:42]}  O-O {[%clk 0:02:46]} 10. Be3 {[%clk 0:02:41]}  Rb8 {[%clk 0:02:45]} 11. a4 {[%clk 0:02:40]}  Nh5 {[%clk 0:02:41]} 12. Qd2 {[%clk 0:02:39]}  f5 {[%clk 0:02:39]} 13. f4 {[%clk 0:02:28]}  exf4 {[%clk 0:02:27]} 14. Nxf4 {[%clk 0:02:28]}  Nxf4 {[%clk 0:02:15]} 15. Bxf4 {[%clk 0:02:29]}  Ne5 {[%clk 0:02:15]} 16. Be2 {[%clk 0:02:20]}  Qe7 {[%clk 0:02:00]} 17. Rae1 {[%clk 0:02:17]}  Bd7 {[%clk 0:01:58]} 18. Bg5 {[%clk 0:02:13]}  Bf6 {[%clk 0:01:49]} 19. Bh6 {[%clk 0:02:04]}  Rf7 {[%clk 0:01:43]} 20. exf5 {[%clk 0:01:48]}  Bxf5 {[%clk 0:01:42]} 21. g4 {[%clk 0:01:49]}  Bd7 {[%clk 0:01:41]} 22. Ne4 {[%clk 0:01:49]}  Bh4 {[%clk 0:01:39]} 23. Rxf7 {[%clk 0:01:48]}  Nxf7 {[%clk 0:01:38]} 24. Nf2 {[%clk 0:01:26]}  Nxh6 {[%clk 0:01:31]} 25. Bd3 {[%clk 0:01:15]}  Qg7 {[%clk 0:01:30]} 26. Qf4 {[%clk 0:01:15]}  Rf8 {[%clk 0:01:28]} 0-1


[Site "https://www.chess.com"]

[Event "Titled Tuesday Blitz July 25 Early 2023"]
[White "Bilan, Danila"]
[Black "Harriott, Tyrell"]
[WhiteFideId "24161918"]
[BlackFideId "2086484"]
[WhiteElo "2535"]
[BlackElo "2360"]
[Result "0-1"]
[Round "2"]
[TimeControl "180+2"]
[Date "2023.07.25"]
[WhiteClock "0:00:02"]
[BlackClock "0:01:32"]
[Board "170"]

1. d4 {[%clk 0:03:00]}  d6 {[%clk 0:02:54]} 2. Nf3 {[%clk 0:03:00]}  Nf6 {[%clk 0:02:54]} 3. Bg5 {[%clk 0:02:58]}  Nbd7 {[%clk 0:02:54]} 4. Nbd2 {[%clk 0:02:58]}  e5 {[%clk 0:02:54]} 5. e3 {[%clk 0:02:58]}  Be7 {[%clk 0:02:55]} 6. Bc4 {[%clk 0:02:58]}  O-O {[%clk 0:02:55]} 7. O-O {[%clk 0:02:58]}  c6 {[%clk 0:02:55]} 8. c3 {[%clk 0:02:58]}  Qc7 {[%clk 0:02:55]} 9. a4 {[%clk 0:02:58]}  Re8 {[%clk 0:02:53]} 10. dxe5 {[%clk 0:02:48]}  dxe5 {[%clk 0:02:52]} 11. Qc2 {[%clk 0:02:47]}  Nf8 {[%clk 0:02:52]} 12. h3 {[%clk 0:02:43]}  Ng6 {[%clk 0:02:51]} 13. Qb3 {[%clk 0:02:33]}  Rf8 {[%clk 0:02:47]} 14. Rad1 {[%clk 0:02:27]}  h6 {[%clk 0:02:47]} 15. Qc2 {[%clk 0:02:07]}  Nh8 {[%clk 0:02:10]} 16. Bh4 {[%clk 0:01:59]}  Nh5 {[%clk 0:02:09]} 17. Bxe7 {[%clk 0:01:48]}  Qxe7 {[%clk 0:02:10]} 18. Ne4 {[%clk 0:01:41]}  Be6 {[%clk 0:02:06]} 19. Bxe6 {[%clk 0:01:14]}  Qxe6 {[%clk 0:02:07]} 20. Nc5 {[%clk 0:01:12]}  Qe7 {[%clk 0:02:05]} 21. b4 {[%clk 0:01:10]}  Nf6 {[%clk 0:02:04]} 22. Rd2 {[%clk 0:00:52]}  Ng6 {[%clk 0:02:04]} 23. Rfd1 {[%clk 0:00:50]}  Rfb8 {[%clk 0:02:03]} 24. Qf5 {[%clk 0:00:45]}  Nd5 {[%clk 0:01:57]} 25. Rd3 {[%clk 0:00:35]}  b6 {[%clk 0:01:49]} 26. Na6 {[%clk 0:00:19]}  e4 {[%clk 0:01:44]} 27. Rd4 {[%clk 0:00:13]}  exf3 {[%clk 0:01:43]} 28. e4 {[%clk 0:00:05]}  Nxc3 {[%clk 0:01:34]} 29. Re1 {[%clk 0:00:02]}  Ne2+ {[%clk 0:01:32]} 0-1


[Site "https://www.chess.com"]